bitfinex/quotes_SOLUSD_20251116
["timestamp","ask_amount","ask_price","bid_price","bid_amount"]
[1763260016008,7.15512306,139.76,139.73,1.77513446]
[1763260016315,25.04293073,139.76,139.72,1.77513446]
[1763260016493,0.68,139.75,139.72,1.77513446]
[1763260016698,0.68,139.75,139.72,2.44513446]
[1763260017323,0.68,139.75,139.7,7.15809271]
[1763260017516,0.68,139.75,139.7,8.93322717]
[1763260017724,0.68,139.75,139.7,9.60322717]
[1763260017909,7.15614713,139.74,139.71,8.93281051]
[1763260018115,7.15614713,139.74,139.71,9.60281051]
[1763260019501,7.15614713,139.74,139.72,1.77513446]
[1763260020338,7.15614713,139.74,139.71,7.82767605]
[1763260020517,10.46882769,139.78,139.73,1.77513446]
[1763260020699,0.68,139.77,139.73,1.77513446]
[1763260021112,0.68,139.77,139.72,2.44513446]
[1763260022730,0.68,139.77,139.72,9.60207189]
[1763260022908,22.6512,139.78,139.75,1.77513446]
[1763260023106,0.68,139.79,139.75,1.77513446]
[1763260023107,7.83371099,139.79,139.75,1.77513446]
[1763260023429,7.83371099,139.79,139.75,2.44513446]
[1763260023634,7.83371099,139.79,139.72,25.04986614]
[1763260023635,18.56096532,139.82,139.77,1.77513446]
[1763260024008,0.68,139.81,139.78,1.77513446]
[1763260024203,0.68,139.81,139.74,7.10053784]
[1763260024204,9.78882769,139.84,139.79,2.44513446]
[1763260024406,7.83088064,139.85,139.81,1.77513446]
[1763260024632,7.15088064,139.85,139.8,2.44513446]
[1763260024930,0.68,139.84,139.8,8.9281362]
[1763260025658,0.68,139.84,139.8,9.5981362]
[1763260026227,7.83119657,139.84,139.8,1.77513446]
[1763260026421,7.83119657,139.84,139.81,1.77513446]
[1763260026733,0.68,139.83,139.81,1.77513446]
[1763260026937,7.83174978,139.83,139.77,0.67]
[1763260027138,32.25808424,139.83,139.78,1.77513446]
[1763260027308,0.68,139.82,139.78,1.77513446]
[1763260027833,0.68,139.82,139.78,2.44513446]
[1763260028133,0.68,139.82,139.78,1.77513446]
[1763260028628,0.68,139.82,139.79,1.77513446]
[1763260029402,7.83206726,139.82,139.79,1.77513446]
[1763260031115,7.15206726,139.82,139.78,1.77513446]
[1763260031319,7.15206726,139.82,139.77,1.77513446]
[1763260031320,0.68,139.81,139.77,1.77513446]
[1763260031635,2.45513446,139.81,139.76,1.77513446]
[1763260031837,0.68,139.8,139.76,1.77513446]
[1763260032419,1.77513446,139.81,139.75,7.15539932]
[1763260032420,7.83206726,139.82,139.78,1.77513446]
[1763260032739,0.68,139.82,139.78,2.44513446]
[1763260033436,22.6512,139.83,139.79,2.45513446]
[1763260033647,0.66,139.83,139.79,2.45513446]
[1763260034241,7.15152341,139.84,139.8,2.45513446]
[1763260034542,7.81152341,139.84,139.8,2.45513446]
[1763260034712,0.66,139.84,139.8,2.45513446]
[1763260035746,0.66,139.84,139.81,7.15256419]
[1763260035920,30.66090727,139.87,139.81,9.60769865]
[1763260036122,22.6512,139.85,139.82,1.77513446]
[1763260036525,22.6512,139.85,139.82,2.43513446]
[1763260037358,22.6512,139.85,139.82,7.15194779]
[1763260037548,0.7,139.84,139.81,1.77513446]
[1763260037840,0.7,139.84,139.8,9.58793059]
[1763260038139,0.7,139.84,139.81,1.77513446]
[1763260038542,0.9,139.87,139.82,2.43513446]
[1763260038735,23.5512,139.87,139.82,2.43513446]
[1763260038945,23.5512,139.87,139.83,2.43513446]
[1763260039336,30.70083308,139.87,139.83,9.58635228]
[1763260039517,30.00083308,139.87,139.83,9.58635228]
[1763260039722,0.7,139.86,139.83,9.58635228]
[1763260040741,22.8512,139.87,139.84,1.77513446]
[1763260040921,0.9,139.87,139.84,1.77513446]
[1763260041758,0.2,139.87,139.86,1.77513446]
[1763260041919,0.2,139.87,139.86,3.55026892]
[1763260042124,0.2,139.87,139.86,4.21026892]
[1763260042320,0.2,139.87,139.86,9.5356723]
[1763260043834,0.2,139.87,139.86,16.68567945]
[1763260047236,0.2,139.87,139.86,1.77513446]
[1763260049790,0.2,139.87,139.86,9.58514161]
[1763260050074,0.2,139.87,139.86,8.92514161]
[1763260051183,0.2,139.87,139.86,1.77513446]
[1763260052204,0.2,139.87,139.86,8.92514161]
[1763260052988,0.2,139.87,139.86,16.68567945]
[1763260055012,0.2,139.87,139.86,23.12625866]
[1763260056094,0.2,139.87,139.86,84.92625866]
[1763260057402,0.2,139.87,139.86,74.47743097]
[1763260057706,0.2,139.87,139.86,75.13743097]
[1763260061918,0.2,139.87,139.86,13.33743097]
[1763260065216,0.2,139.87,139.86,12.67743097]
[1763260065401,0.2,139.87,139.86,13.35743097]
[1763260066005,0.2,139.91,139.86,66.98248459]
[1763260066203,0.89,139.91,139.9,2.76371191]
[1763260068808,0.2,139.91,139.9,9.91167474]
[1763260069417,0.89,139.91,139.9,2.76371191]
[1763260069935,0.89,139.91,139.9,9.91167474]
[1763260070226,0.89,139.91,139.9,2.76371191]
[1763260071906,0.89,139.91,139.9,9.91167474]
[1763260071907,0.2,139.91,139.9,9.91167474]
[1763260072310,0.89,139.91,139.9,9.91167474]
[1763260076138,0.89,139.91,139.9,2.76371191]
[1763260080436,8.03745193,139.91,139.86,2.76371191]
[1763260080627,0.89,139.91,139.9,2.76371191]
[1763260080942,0.2,139.91,139.9,2.76371191]
[1763260081330,0.89,139.91,139.9,2.76371191]
[1763260081724,0.89,139.91,139.84,68.19380106]
[1763260081725,8.03761317,139.91,139.88,2.76371191]
[1763260081925,0.2,139.91,139.9,2.76371191]
[1763260082123,0.69,139.9,139.86,2.76371191]
[1763260082325,0.69,139.9,139.89,2.76371191]
[1763260082919,0.69,139.9,139.89,9.91218571]
[1763260083443,0.69,139.9,139.89,2.76371191]
[1763260084138,0.2,139.91,139.89,2.76371191]
[1763260084340,0.89,139.91,139.9,2.76371191]
[1763260085321,0.2,139.91,139.9,9.91167474]
[1763260087332,0.89,139.91,139.9,2.76371191]
[1763260087540,0.89,139.91,139.9,9.91167474]
[1763260088130,0.2,139.91,139.9,9.91167474]
[1763260088739,0.2,139.91,139.9,10.59167474]
[1763260088929,0.2,139.91,139.9,9.91167474]
[1763260089745,0.2,139.91,139.9,2.76371191]
[1763260090045,0.89,139.91,139.9,2.76371191]
[1763260090634,8.03745193,139.91,139.9,2.76371191]
[1763260090864,8.03745193,139.91,139.89,2.76371191]
[1763260091069,0.69,139.9,139.88,7.1489324]
[1763260091445,0.69,139.9,139.87,7.14935851]
[1763260091766,0.69,139.9,139.87,25.02309841]
[1763260092352,0.69,139.9,139.89,2.76371191]
[1763260093030,0.69,139.9,139.86,2.76371191]
[1763260093231,0.69,139.9,139.89,2.76371191]
[1763260096772,0.2,139.91,139.89,25.41491191]
[1763260097055,0.2,139.92,139.9,23.14421434]
[1763260097056,1e-08,139.92,139.9,23.14421434]
[1763260097253,0.67,140.02,139.95,9.78882769]
[1763260097553,0.67,140.02,140.01,2.76371191]
[1763260097754,0.67,140.02,139.98,2.76371191]
[1763260097954,0.67,140.02,140.01,2.76371191]
[1763260099831,0.67,140.02,140.0,2.76371191]
[1763260100147,0.67,140.02,140.01,2.76371191]
[1763260101651,0.67,140.02,140.0,2.76371191]
[1763260103658,0.67,140.02,140.01,2.76371191]
[1763260104244,7.81183688,140.02,139.98,2.76371191]
[1763260104452,25.66642908,140.02,139.98,2.76371191]
[1763260104634,0.67,140.01,139.98,2.76371191]
[1763260105435,7.14285714,140.0,139.98,2.76371191]
[1763260105842,0.67,139.99,139.98,2.76371191]
[1763260106337,0.67,139.99,139.96,2.76371191]
[1763260107545,7.81383748,139.99,139.96,2.76371191]
[1763260107963,0.67,139.98,139.96,2.76371191]
[1763260108332,0.67,139.98,139.97,2.76371191]
[1763260108537,166.2,140.05,139.97,5.52742382]
[1763260108771,166.2,140.05,140.03,2.76371191]
[1763260108772,0.67,140.04,140.03,2.76371191]
[1763260108944,0.67,140.04,140.02,2.76371191]
[1763260109153,23.3212,140.04,139.95,25.28876706]
[1763260109344,23.3212,140.04,140.01,2.76371191]
[1763260109553,0.67,140.03,140.01,2.76371191]
[1763260109843,0.67,140.03,140.02,2.76371191]
[1763260110534,0.67,140.03,139.98,3.04371191]
[1763260110730,0.67,140.03,140.02,2.76371191]
[1763260111652,0.87,140.05,140.02,9.90539805]
[1763260111866,0.2,140.05,140.03,2.76371191]
[1763260112235,0.2,140.05,140.04,2.76371191]
[1763260114171,0.2,140.05,140.04,9.90452881]
[1763260114348,0.2,140.05,140.04,2.76371191]
[1763260114866,0.87,140.05,140.02,7.1418358]
[1763260115064,0.2,140.05,140.04,1.76553413]
[1763260115274,0.2,140.05,140.04,9.10767065]
[1763260115563,0.2,140.05,140.04,8.82767065]
[1763260115748,0.2,140.05,140.04,1.76553413]
[1763260115950,0.2,140.05,140.04,3.53106826]
[1763260116150,0.2,140.05,140.04,8.90635103]
[1763260116366,0.2,140.05,140.04,10.67188516]
[1763260118880,0.87,140.05,139.99,40.50904404]
[1763260119180,25.86114654,140.05,139.98,7.06213652]
[1763260119388,0.67,140.04,140.02,1.76553413]
[1763260120954,0.67,140.04,140.03,1.76553413]
[1763260121582,7.81113281,140.04,140.02,1.76553413]
[1763260121876,0.67,140.03,140.02,1.76553413]
[1763260122373,0.67,140.03,139.98,7.06213652]
[1763260122374,0.67,140.03,140.01,1.76553413]
[1763260123063,0.67,140.03,140.02,1.76553413]
[1763260124275,7.81132685,140.03,140.02,1.76553413]
[1763260124581,7.81132685,140.03,140.01,1.76553413]
[1763260124880,0.71,140.04,140.02,1.76553413]
[1763260125376,22.8512,140.05,140.02,1.76553413]
[1763260125586,1.93593088,140.06,140.04,8.82767065]
[1763260125587,1e-08,140.06,140.04,8.82767065]
[1763260125794,1e-08,140.06,140.05,11.55436182]
[1763260125969,0.71,140.13,140.08,22.6512]
[1763260126455,0.71,140.13,140.1,1.76553413]
[1763260126850,0.71,140.13,140.12,1.76553413]
[1763260127078,21.56195646,140.21,140.12,1.76553413]
[1763260127079,1.96553413,140.17,140.12,1.76553413]
[1763260127271,0.91,140.17,140.14,1.76553413]
[1763260127454,0.91,140.17,140.1,7.06213652]
[1763260127455,0.2,140.17,140.16,1.76553413]
[1763260128355,0.2,140.17,140.1,7.06213652]
[1763260128356,0.2,140.17,140.14,22.6512]
[1763260128578,0.91,140.17,140.16,1.76553413]
[1763260128777,0.2,140.17,140.16,1.76553413]
[1763260128959,0.2,140.17,140.16,11.41789247]
[1763260129288,0.2,140.17,140.16,4.28318928]
[1763260129964,0.91,140.17,140.16,4.28318928]
[1763260130269,0.91,140.17,140.14,29.78690081]
[1763260130270,0.2,140.17,140.14,29.78690081]
[1763260130476,0.2,140.17,140.16,4.28318928]
[1763260131084,0.2,140.17,140.16,11.41789247]
[1763260132676,0.2,140.17,140.16,32.33822059]
[1763260132881,0.2,140.17,140.14,29.78680288]
[1763260133186,0.2,140.17,140.16,4.28318928]
[1763260134283,0.2,140.17,140.16,11.41789247]
[1763260134582,0.2,140.17,140.16,4.28318928]
[1763260134783,0.91,140.17,140.16,4.28318928]
[1763260135869,0.91,140.17,140.13,28.17878608]
[1763260136059,0.91,140.17,140.16,4.28318928]
[1763260136580,0.91,140.17,140.15,22.6512]
[1763260136779,0.91,140.17,140.16,4.28318928]
[1763260136993,0.2,140.17,140.16,34.06909247]
[1763260137283,0.71,140.24,140.16,51.90585046]
[1763260137483,17.36,140.32,140.23,4.28318928]
[1763260137784,17.36,140.32,140.21,4.28318928]
[1763260137785,0.71,140.27,140.22,22.6512]
[1763260138290,17.36,140.32,140.23,22.6512]
[1763260138492,0.71,140.26,140.23,22.6512]
[1763260138738,0.71,140.31,140.21,26.93438928]
[1763260139003,0.71,140.31,140.27,4.28318928]
[1763260139154,0.71,140.31,140.23,7.13113258]
[1763260139357,0.71,140.31,140.28,4.28318928]
[1763260139582,0.71,140.3,140.26,22.6512]
[1763260139769,0.71,140.31,140.29,4.28318928]
[1763260139962,0.71,140.31,140.3,4.28318928]
[1763260140360,0.2,140.32,140.3,4.28318928]
[1763260140564,0.2,140.32,140.31,4.28318928]
[1763260140978,0.2,140.32,140.28,4.28318928]
[1763260141196,0.2,140.32,140.31,22.6512]
[1763260141374,0.2,140.32,140.31,26.93438928]
[1763260141572,2.3278424,140.35,140.32,22.6512]
[1763260142392,0.71,140.43,140.34,8.56637856]
[1763260142572,3.72647987,140.52,140.38,22.6512]
[1763260142763,50.0,140.56,140.38,22.6512]
[1763260142764,0.71,140.48,140.47,4.28318928]
[1763260142967,0.71,140.48,140.42,4.28318928]
[1763260143175,0.71,140.48,140.42,7.1211393]
[1763260143397,3.72444761,140.58,140.42,7.1211393]
[1763260143398,0.71,140.5,140.45,22.6512]
[1763260143560,0.71,140.5,140.4,6.28318927]
[1763260143561,0.71,140.5,140.4,4.28318928]
[1763260143988,4.28318928,140.49,140.4,4.28318928]
[1763260144184,0.71,140.5,140.46,4.28318928]
[1763260144381,0.71,140.49,140.46,4.28318928]
[1763260144564,0.71,140.49,140.48,4.28318928]
[1763260144984,0.71,140.49,140.43,22.6512]
[1763260145175,0.71,140.49,140.38,1.99999999]
[1763260145176,4.28318928,140.48,140.39,44.05149247]
[1763260145488,4.28318928,140.44,140.4,4.28318928]
[1763260145670,4.99318928,140.47,140.36,22.6512]
[1763260145987,0.71,140.46,140.42,4.28318928]
[1763260146192,4.28318928,140.45,140.4,4.28318928]
[1763260146489,0.71,140.46,140.38,4.28318928]
[1763260146680,0.71,140.45,140.4,4.28318928]
[1763260146881,4.99318928,140.45,140.39,4.28318928]
[1763260147087,24.92167473,140.44,140.31,7.12707576]
[1763260147283,7.83047849,140.44,140.37,4.28318928]
[1763260147466,0.71,140.43,140.4,4.28318928]
[1763260148069,0.71,140.43,140.36,22.6512]
[1763260148070,166.0,140.53,140.42,4.28318928]
[1763260148271,367.82118033,140.57,140.43,4.28318928]
[1763260148272,0.71,140.46,140.43,4.28318928]
[1763260148470,0.71,140.46,140.37,32.44002769]
[1763260148684,0.71,140.46,140.44,4.28318928]
[1763260149109,0.71,140.48,140.45,4.28318928]
[1763260149317,0.71,140.48,140.46,4.28318928]
[1763260149488,7.11485139,140.56,140.47,4.28318928]
[1763260149820,7.11485139,140.56,140.46,22.6512]
[1763260149821,0.71,140.55,140.54,4.28318928]
[1763260150017,0.71,140.55,140.53,4.28318928]
[1763260150497,0.71,140.55,140.52,4.28318928]
[1763260150682,0.71,140.55,140.49,4.28318928]
[1763260150683,0.71,140.55,140.53,4.28318928]
[1763260150891,0.71,140.55,140.54,4.28318928]
[1763260151085,0.71,140.55,140.53,4.28318928]
[1763260151409,29.8953756,140.55,140.46,29.77047759]
[1763260151619,29.8953756,140.55,140.5,4.28318928]
[1763260151793,0.71,140.54,140.51,4.28318928]
[1763260152098,0.71,140.54,140.46,22.6512]
[1763260152423,0.71,140.54,140.4,21.39571372]
[1763260152424,4.28318928,140.49,140.4,21.39571372]
[1763260152583,4.28318928,140.46,140.41,4.28318928]
[1763260152780,4.28318928,140.46,140.34,7.12555223]
[1763260153097,0.71,140.46,140.45,4.28318928]
[1763260153284,0.67,140.48,140.45,4.28318928]
[1763260153486,4.28318928,140.47,140.38,7.12314233]
[1763260153683,4.28318928,140.47,140.43,4.28318928]
[1763260153899,22.6512,140.51,140.43,4.28318928]
[1763260153900,0.67,140.46,140.43,4.28318928]
[1763260154100,0.67,140.46,140.44,4.28318928]
[1763260154306,0.67,140.46,140.45,4.28318928]
[1763260154488,0.67,140.46,140.44,4.28318928]
[1763260154704,0.67,140.46,140.45,4.28318928]
[1763260154909,0.67,140.46,140.44,4.28318928]
[1763260155090,0.67,140.46,140.4,7.12250712]
[1763260155415,0.67,140.46,140.35,17.811643]
[1763260155416,4.28318928,140.44,140.35,17.811643]
[1763260155590,30.44078365,140.46,140.43,4.28318928]
[1763260155794,0.67,140.45,140.42,4.28318928]
[1763260156013,0.67,140.45,140.39,22.6512]
[1763260156919,0.67,140.45,140.43,4.28318928]
[1763260157091,0.67,140.45,140.42,4.28318928]
[1763260157295,7.79039341,140.45,140.42,4.28318928]
[1763260157797,0.67,140.44,140.41,7.12197538]
[1763260157996,0.67,140.48,140.41,7.12197538]
[1763260158596,0.67,140.48,140.41,24.92697502]
[1763260158997,0.67,140.48,140.47,4.28318928]
[1763260159212,7.78845102,140.48,140.46,4.28318928]
[1763260159603,0.67,140.47,140.39,22.6512]
[1763260159819,0.67,140.47,140.44,4.28318928]
[1763260160019,0.67,140.47,140.43,4.28318928]
[1763260160231,0.67,140.47,140.39,22.6512]
[1763260160232,9.78882769,140.46,140.39,4.28318928]
[1763260160556,9.78882769,140.44,140.37,4.28318928]
[1763260160691,9.78882769,140.44,140.33,22.6512]
[1763260160895,0.67,140.43,140.33,22.6512]
[1763260161097,0.67,140.43,140.34,0.72]
[1763260161368,7.12149266,140.42,140.35,7.12504453]
[1763260161860,4.28318928,140.44,140.39,4.28318928]
[1763260162038,0.67,140.48,140.42,4.28318928]
[1763260162238,0.67,140.47,140.45,4.28318928]
[1763260162471,0.67,140.47,140.44,4.28318928]
[1763260163273,0.67,140.47,140.45,4.28318928]
[1763260163441,0.67,140.47,140.46,4.28318928]
[1763260163649,0.67,140.5,140.46,4.28318928]
[1763260163844,0.67,140.5,140.44,0.72]
[1763260164153,0.67,140.5,140.49,4.28318928]
[1763260164657,0.67,140.5,140.44,0.72]
[1763260164956,0.67,140.52,140.49,4.28318928]
[1763260165178,0.67,140.52,140.51,4.28318928]
[1763260165643,0.75,140.55,140.51,4.28318928]
[1763260165848,0.67,140.54,140.51,4.28318928]
[1763260166256,0.67,140.54,140.45,29.77113583]
[1763260166456,0.67,140.54,140.5,4.28318928]
[1763260166857,0.67,140.54,140.49,4.28318928]
[1763260167058,4.28318928,140.52,140.47,4.28318928]
[1763260167243,4.95318928,140.54,140.48,4.28318928]
[1763260167443,25.57571407,140.53,140.48,4.28318928]
[1763260167672,0.08,140.55,140.48,4.28318928]
[1763260167866,0.67,140.54,140.51,4.28318928]
[1763260168185,0.67,140.54,140.48,4.28318928]
[1763260168354,4.28318928,140.51,140.42,4.28318928]
[1763260168554,14.74201697,140.5,140.44,4.28318928]
[1763260169159,0.67,140.49,140.44,4.28318928]
[1763260169367,7.11845102,140.48,140.44,4.28318928]
[1763260169742,7.11845102,140.48,140.42,7.12102654]
[1763260169743,0.67,140.47,140.45,4.28318928]
[1763260169943,0.67,140.47,140.43,7.12081531]
[1763260170177,0.67,140.47,140.45,4.28318928]
[1763260170378,0.67,140.51,140.46,4.28318928]
[1763260170689,0.67,140.5,140.47,4.28318928]
[1763260171178,0.67,140.5,140.45,4.28318928]
[1763260171349,4.95318928,140.5,140.44,4.28318928]
[1763260171552,7.11794433,140.49,140.44,4.28318928]
[1763260171750,25.58280517,140.49,140.45,4.28318928]
[1763260171969,0.67,140.48,140.44,4.28318928]
[1763260172359,0.67,140.48,140.41,7.12181519]
[1763260172572,0.67,140.48,140.44,4.28318928]
[1763260173151,0.67,140.48,140.45,4.28318928]
[1763260173152,7.11895778,140.47,140.45,4.28318928]
[1763260173590,0.67,140.46,140.4,22.6512]
[1763260173795,0.67,140.46,140.44,4.28318928]
[1763260174562,0.67,140.46,140.36,9.78882769]
[1763260174563,32.44002769,140.52,140.45,5.00318928]
[1763260174886,0.67,140.51,140.45,0.72]
[1763260175294,0.67,140.51,140.45,7.83978476]
[1763260175792,7.78693638,140.51,140.45,7.11978476]
[1763260175957,14.07201697,140.5,140.37,0.72]
[1763260176159,9.78882769,140.48,140.43,4.28318928]
[1763260176653,0.67,140.47,140.45,4.28318928]
[1763260176961,0.67,140.47,140.46,6.79117581]
[1763260177161,0.67,140.47,140.45,6.79117581]
[1763260177761,7.7892298,140.47,140.44,6.79117581]
[1763260178152,0.67,140.46,140.43,6.79117581]
[1763260178358,0.67,140.46,140.42,6.79117581]
[1763260178583,0.67,140.46,140.39,7.12288415]
[1763260178584,6.79117581,140.44,140.39,6.79117581]
[1763260178776,6.79117581,140.44,140.38,6.79117581]
[1763260178962,0.67,140.43,140.39,6.79117581]
[1763260179163,7.12149266,140.42,140.38,6.79117581]
[1763260179667,0.67,140.41,140.38,6.79117581]
[1763260179872,0.67,140.41,140.37,6.79117581]
[1763260180100,7.46117581,140.41,140.32,13.91769923]
[1763260180421,7.46117581,140.41,140.36,6.79117581]
[1763260180710,0.67,140.4,140.33,0.72]
[1763260180883,0.67,140.4,140.38,6.79117581]
[1763260181219,3.72445363,140.46,140.39,6.79117581]
[1763260181388,0.67,140.42,140.39,1.59627632]
[1763260182409,7.46117581,140.42,140.37,6.79117581]
[1763260182600,0.67,140.42,140.39,6.79117581]
[1763260182808,0.67,140.41,140.39,6.79117581]
[1763260183177,0.67,140.41,140.38,6.79117581]
[1763260183408,7.12250712,140.4,140.38,6.79117581]
[1763260183697,7.12250712,140.4,140.37,6.79117581]
[1763260184003,0.65,140.39,140.37,6.79117581]
[1763260184701,0.65,140.43,140.38,6.79117581]
[1763260184901,7.11845102,140.48,140.42,6.79117581]
[1763260185083,7.11845102,140.48,140.38,0.67]
[1763260185084,0.65,140.43,140.38,0.67]
[1763260185404,0.65,140.43,140.39,7.12301445]
[1763260185705,0.65,140.43,140.38,7.79334207]
[1763260185878,0.65,140.43,140.36,22.6512]
[1763260186078,7.77102994,140.43,140.34,22.6512]
[1763260186283,7.77102994,140.43,140.39,6.79117581]
[1763260186505,0.65,140.42,140.39,6.79117581]
[1763260187408,0.65,140.42,140.4,6.79117581]
[1763260187701,0.65,140.42,140.39,6.79117581]
[1763260187901,0.65,140.46,140.41,6.79117581]
[1763260188079,0.65,140.45,140.44,6.79117581]
[1763260188705,0.65,140.45,140.43,6.79117581]
[1763260189801,7.77023957,140.45,140.43,6.79117581]
[1763260190102,0.65,140.45,140.44,6.79117581]
[1763260190900,0.65,140.49,140.44,6.79117581]
[1763260191088,0.65,140.48,140.46,6.79117581]
[1763260191308,0.65,140.48,140.47,6.79117581]
[1763260191500,4.37182467,140.54,140.47,14.25235162]
[1763260191789,7.76600331,140.53,140.49,6.79117581]
[1763260192306,0.65,140.52,140.49,6.79117581]
[1763260192508,0.65,140.52,140.48,6.79117581]
[1763260192722,0.65,140.52,140.49,6.79117581]
[1763260192924,0.65,140.52,140.48,6.79117581]
[1763260193100,16.5800035,140.51,140.41,0.67]
[1763260193609,0.65,140.5,140.45,6.79117581]
[1763260193911,7.11794433,140.49,140.45,6.79117581]
[1763260194101,24.91280517,140.49,140.44,6.79117581]
[1763260194291,0.65,140.48,140.44,6.79117581]
[1763260194486,0.65,140.48,140.45,6.79117581]
[1763260195419,22.6512,140.53,140.47,6.79117581]
[1763260195420,0.65,140.53,140.47,6.79117581]
[1763260195716,0.65,140.54,140.51,6.79117581]
[1763260195887,7.7655004,140.54,140.52,6.79117581]
[1763260196287,0.65,140.53,140.52,6.79117581]
[1763260198389,7.11545089,140.54,140.52,6.79117581]
[1763260198605,7.76545089,140.54,140.52,6.79117581]
[1763260199897,0.65,140.53,140.5,6.79117581]
[1763260200322,0.65,140.53,140.51,6.79117581]
[1763260200612,0.65,140.53,140.52,6.79117581]
[1763260200841,0.08,140.55,140.52,7.46117581]
[1763260200993,0.08,140.55,140.54,6.79117581]
[1763260201340,0.08,140.55,140.49,0.67]
[1763260201494,25.6322567,140.55,140.47,61.8]
[1763260201812,25.6322567,140.55,140.5,6.79117581]
[1763260202011,0.65,140.54,140.5,6.79117581]
[1763260202322,6.79117581,140.53,140.43,62.47]
[1763260202493,6.79117581,140.53,140.47,6.79117581]
[1763260202712,23.3012,140.52,140.48,6.79117581]
[1763260202908,23.3012,140.52,140.42,25.59522432]
[1763260202909,0.65,140.51,140.49,6.79117581]
[1763260203226,24.9822567,140.55,140.43,0.67]
[1763260203227,0.65,140.53,140.5,6.79117581]
[1763260203532,0.65,140.53,140.46,0.67]
[1763260203721,7.19499239,140.55,140.52,6.79117581]
[1763260203917,0.73,140.55,140.48,6.79117581]
[1763260204118,0.73,140.55,140.53,6.79117581]
[1763260204327,0.73,140.55,140.54,6.79117581]
[1763260204518,0.73,140.55,140.53,6.79117581]
[1763260204919,0.73,140.55,140.48,6.79117581]
[1763260205238,0.73,140.55,140.52,6.79117581]
[1763260205625,0.08,140.55,140.54,6.79117581]
[1763260205923,0.08,140.55,140.53,6.79117581]
[1763260206124,0.08,140.55,140.54,6.79117581]
[1763260206518,0.73,140.55,140.53,6.79117581]
[1763260206722,0.08,140.55,140.53,6.79117581]
[1763260206910,0.73,140.55,140.53,6.79117581]
[1763260207111,0.73,140.55,140.54,6.79117581]
[1763260207307,0.08,140.55,140.54,6.79117581]
[1763260207513,0.73,140.55,140.54,6.79117581]
[1763260207741,0.08,140.55,140.54,6.79117581]
[1763260208034,7.84490572,140.55,140.54,6.79117581]
[1763260208235,0.08,140.55,140.53,6.79117581]
[1763260208537,0.08,140.55,140.54,6.79117581]
[1763260208750,0.73,140.55,140.5,7.11727979]
[1763260208948,7.84497739,140.55,140.52,6.79117581]
[1763260209241,14.6361532,140.55,140.46,0.67]
[1763260209532,7.44117581,140.54,140.49,6.79117581]
[1763260209740,0.65,140.54,140.48,6.79117581]
[1763260210035,7.1164247,140.52,140.48,6.79117581]
[1763260210235,6.79117581,140.51,140.42,0.67]
[1763260210544,6.79117581,140.5,140.4,0.67]
[1763260210752,7.44117581,140.5,140.44,6.79117581]
[1763260211037,6.79117581,140.45,140.38,6.79117581]
[1763260211237,6.79117581,140.44,140.38,6.79117581]
[1763260211533,0.65,140.44,140.38,6.79117581]
[1763260211715,22.6512,140.45,140.33,7.12600558]
[1763260211716,0.65,140.43,140.39,6.79117581]
[1763260211918,7.12149266,140.42,140.39,6.79117581]
[1763260212118,0.65,140.41,140.38,6.79117581]
[1763260212317,0.65,140.41,140.39,6.79117581]
[1763260212530,0.65,140.46,140.4,6.79117581]
[1763260212734,0.65,140.46,140.43,6.79117581]
[1763260213139,0.65,140.46,140.41,6.79117581]
[1763260214020,7.11997152,140.45,140.42,6.79117581]
[1763260214220,0.66,140.44,140.42,6.79117581]
[1763260214741,0.66,140.44,140.38,7.8333658]
[1763260214742,0.66,140.48,140.43,6.79117581]
[1763260215040,0.66,140.47,140.42,6.79117581]
[1763260215215,10.44882769,140.47,140.36,7.12421058]
[1763260215420,16.5800035,140.46,140.4,6.79117581]
[1763260215632,16.5800035,140.46,140.35,0.71]